Cogmind - Beta 17 @@@ ROGUE MODE // 2026.07.21 @ 20:52:45 Player: naththebg Result: Destroyed by P-60 Hacker with Shock Rifle Performance ------------- Evolutions (3) 1500 Regions Visited (9) 1800 Robots Destroyed (97) 485 Value Destroyed (3295) 3295 Prototype IDs (45) 900 Alien Tech Used (0) 0 Bonus (9236) 9236 TOTAL SCORE: 17216 Bonus ------- High Alert Combat Kills 207 Follower Combat Kills 121 Prayed to X0-1V1 5000 Major X0-1V1 Interference 3050 Entered Garrisons 200 Used RIF Installer 500 Aligned with FarCom 300 Friendly Fire -142 Cogmind --------- Core Integrity 0/400 Matter 578/900 Energy 100/100 System Corruption 5% Temperature Cool (0) Movement Rolling (125) Ox3 Location -7/Factory Parts ------- > --- POWER (1) -------- (None) > --- PROPULSION (4) --- Armored Wheel > --- UTILITY (6) ------ High-capacity Storage Unit Relay Coupler [Grunt] (14) > --- WEAPON (3) ------- Remote Datajack > --- INVENTORY (20) --- Potential Leg Potential Leg Coolant Injector Huge Storage Unit High-capacity Matter Pod (0) Relay Coupler [NC] (39) Relay Coupler [Swarmer] (41) Relay Coupler [Sentry] (32) Relay Coupler [Sentry] (31) Relay Coupler [Sentry] (32) Peak State ------------ > --- POWER ------------ Improved Deuterium Engine > --- PROPULSION ------- Improved Treads Improved Treads Improved Treads Improved Treads > --- UTILITY ---------- Improved Heat Sink High-capacity Storage Unit Weapon Cycler Medium Armor Plating Relay Coupler [NC] X0-1V1's Piety Tracker > --- WEAPON ----------- Gauss Cannon Gauss Cannon Remote Datajack > --- INVENTORY -------- Heavy Ion Engine Advanced Treads Potential Leg Potential Leg Armored Wheel Armored Wheel Coolant Injector Huge Storage Unit High-capacity Matter Pod Relay Coupler [NC] Relay Coupler [Swarmer] Relay Coupler [Grunt] Relay Coupler [Sentry] Relay Coupler [Sentry] Relay Coupler [Sentry] Particle Cannon Heavy Ion Cannon Heavy Ion Cannon Assault Cannon Rocket Launcher [Rating: 55] Favorites ----------- Power Heavy Ion Engine Engine Heavy Ion Engine Propulsion Improved Treads Treads Improved Treads Leg Aluminum Leg Wheel Armored Wheel Utility X0-1V1's Piety Tracker Device X0-1V1's Piety Tracker Storage Large Storage Unit Hackware Relay Coupler [NC] Protection Medium Armor Plating Weapon EM Shotgun Energy Gun EM Shotgun Energy Cannon Particle Cannon Ballistic Gun Shotgun Ballistic Cannon Gauss Cannon Launcher Grenade Launcher Special Weapon Remote Datajack Impact Weapon Maul Special Melee Weapon Improved Datajack Build | -11 -10 -10 -9 -9 -9 -8 -8 -8 -7 ------- Run | Yrd Mat Min Mat Min Exi Min Mat Gar Fac Slots Evolved 6 | . . . 2 . . . 2 . 2 Power . | . . . . . . . . . . Propulsion 2 | . . . 1 . . . 1 . . Utility 3 | . . . 1 . . . . . 2 Weapon 1 | . . . . . . . 1 . . Parts Attached 65 | 6 12 6 10 3 2 2 8 2 14 Power 7 | 1 3 1 1 . . . . . 1 Engine 7 | 1 3 1 1 . . . . . 1 Core . | . . . . . . . . . . Reactor . | . . . . . . . . . . Propulsion 14 | 2 3 1 1 1 1 . 1 1 3 Treads 9 | . 2 1 1 1 1 . 1 1 1 Leg 3 | 2 1 . . . . . . . . Wheel 2 | . . . . . . . . . 2 Hover . | . . . . . . . . . . Flight . | . . . . . . . . . . Utility 17 | 1 3 1 1 2 . . 2 1 6 Device 7 | . 2 1 . 1 . . . . 3 Storage 3 | 1 1 . . . . . 1 . . Processor . | . . . . . . . . . . Hackware 4 | . . . . . . . 1 . 3 Protection 3 | . . . 1 1 . . . 1 . Artifact . | . . . . . . . . . . Weapon 27 | 2 3 3 7 . 1 2 5 . 4 Energy Gun 10 | 2 2 2 1 . . 2 1 . . Energy Cannon 3 | . . . . . . . 2 . 1 Ballistic Gun 3 | . . . 3 . . . . . . Ballistic Cannon 7 | . 1 . 3 . . . 2 . 1 Launcher 2 | . . 1 . . . . . . 1 Special Weapon 1 | . . . . . . . . . 1 Impact Weapon . | . . . . . . . . . . Slashing Weapon . | . . . . . . . . . . Piercing Weapon . | . . . . . . . . . . Special Melee Weapon 1 | . . . . . 1 . . . . Unidentified Prototypes 4 | . 1 . 2 . . . 1 . . Corrupted Parts 1 | . . . . . 1 . . . . System Corruption 1 | . . . . . 1 . . . . Parts Lost 32 | . 3 3 1 2 . . . . 23 Power 5 | . 1 1 1 . . . . . 2 Propulsion 8 | . 1 . . 1 . . . . 6 Utility 9 | . . . . 1 . . . . 8 Weapon 10 | . 1 2 . . . . . . 7 Highest Loss Streak 11 | . 1 2 1 2 . . . . 11 To Critical Strikes 2 | . 1 . . . . . . . 1 Average Backups 15 | 4 11 14 13 14 14 14 14 18 18 Power . | 1 1 . . . . . 1 1 . Propulsion 4 | 2 4 4 4 4 4 5 4 4 4 Utility 4 | . 1 2 2 3 3 3 4 8 9 Weapon 4 | . 3 6 5 6 7 5 3 3 3 Tool/Special . | . . . . . . . . . . Unused Backups 35 | . 5 3 4 3 . . . 8 12 Power 2 | . 1 . . . . . . . 1 Propulsion 8 | . 2 2 2 . . . . . 2 Utility 18 | . 1 . . 1 . . . 8 8 Weapon 6 | . 1 . 2 2 . . . . 1 Tool/Special 1 | . . 1 . . . . . . . Average Slot Usage (%) 95 | . 99 97 96 98 86 98 96 100 88 Engine 10 | . 13 13 10 11 11 11 9 8 6 Treads 22 | . 20 16 22 21 22 22 25 28 23 Leg 1 | . 7 . . . . . . . . Device 18 | . 13 25 22 21 22 22 18 17 16 Storage 10 | . 14 14 11 11 11 11 9 8 7 Hackware 2 | . . . . . . . 1 5 6 Protection 5 | . . . 8 11 11 11 7 3 5 Energy Gun 8 | . 20 24 . . . 19 4 . . Energy Cannon 3 | . . . . . . . 10 14 6 Ballistic Gun 1 | . . . 15 . . . . . . Ballistic Cannon 7 | . 7 . 5 22 . . 9 4 9 Special Melee Weapon 1 | . . . . . 9 1 . 7 . Peak Build Rating 55 | 6 23 28 37 36 34 37 44 45 55 Average Rating 32 | 3 8 23 33 33 33 36 41 43 47 On Entrance 27 | . 6 23 24 35 30 34 37 42 45 Avg Prop Armor Cover (%) 8 | . . . . . . . . . 8 Naked Turns . | . . . . . . . . . . Heaviest Build 78 | 13 32 33 43 45 38 43 67 69 78 Greatest Support 92 | 20 40 40 42 45 46 46 69 92 92 Greatest Overweight (x) 5 | 1 . 1 1 . . . . . 5 Average Overweight (x) . | . . . . . . . . . . Largest Inventory Capacity 20 | 8 15 15 15 15 15 15 20 20 20 Average Capacity 16 | 7 12 15 15 15 15 15 15 20 20 Most Carried 20 | 6 15 15 15 15 15 15 15 20 20 Average Carried 15 | 4 11 14 13 14 14 14 14 18 18 Final Capacity 20 | 8 15 15 15 15 15 15 20 20 20 Final Carried 20 | 6 15 14 13 15 15 15 15 20 10 Class Distribution -------------------- 67% | Mutant 20% | Bothacker-Skirmisher 7% | Bothacker-Mutant 4% | Skirmisher Dominant Class ---------------- Mutant | -10/Materials Mutant | -10/Mines Mutant | -9/Materials Mutant | -9/Mines Mutant | -9/Exiles Mutant | -8/Mines Skirmisher | -8/Materials Bothacker-Mutant | -8/Garrison Bothacker-Skirmisher | -7/Factory Resources | -11 -10 -10 -9 -9 -9 -8 -8 -8 -7 ----------- Run | Yrd Mat Min Mat Min Exi Min Mat Gar Fac Matter Collected 3203 | 212 481 46 465 288 66 50 124 46 1425 Remotely . | . . . . . . . . . . Salvage Created 2772 | . 614 . 507 161 . 125 189 . 1176 Parts 159 | . 40 . 32 8 . 8 13 . 58 Haulers Intercepted 7 | . 2 . 3 . . . 1 . 1 Recyclers Shooed 3 | . . . 2 1 . . . . . Parts Field Recycled . | . . . . . . . . . . Retrieved Matter . | . . . . . . . . . . Parts Self-Destructed . | . . . . . . . . . . Prevented . | . . . . . . . . . . Parts Restored . | . . . . . . . . . . Kills | -11 -10 -10 -9 -9 -9 -8 -8 -8 -7 ------- Run | Yrd Mat Min Mat Min Exi Min Mat Gar Fac Combat Hostiles Destroyed 73 | . 17 . 8 5 . 4 5 . 34 Guns 18 | . 7 . 4 . . 4 3 . . Cannons 49 | . 10 . 4 5 . . 2 . 28 AOE 6 | . . . . . . . . . 6 Classes Destroyed 14 | . 7 . 3 . . . . . 4 Worker 5 | . 1 . 2 . . . . . 2 Builder 4 | . 2 . . . . . . . 2 Hauler 7 | . 2 . 3 . . . 1 . 1 Recycler 3 | . . . 1 . . 1 . . 1 Operator 1 | . 1 . . . . . . . . Watcher 4 | . 1 . 1 . . . 1 . 1 Swarmer 14 | . 6 . . . . 4 4 . . Grunt 30 | . 11 . 3 1 . . . . 15 Brawler 1 | . . . 1 . . . . . . Protector 1 | . . . . . . . . . 1 Sentry 11 | . . . 4 4 . . 1 . 2 Specialist 2 | . . . . . . . . . 2 Hunter 10 | . . . . . . . . . 10 Programmer 4 | . . . . . . . . . 4 Best Kill Streak 11 | . 4 . 4 4 . 4 3 . 11 Combat Bots Only 11 | . 4 . 4 4 . 4 3 . 11 Max Kills in Single Turn 3 | . 1 . 1 1 . 1 1 . 3 Gunslinging . | . . . . . . . . . . Exploded 3 | . . . . . . . . . 3 Melee . | . . . . . . . . . . Uniques/NPCs Destroyed . | . . . . . . . . . . Combat | -11 -10 -10 -9 -9 -9 -8 -8 -8 -7 -------- Run | Yrd Mat Min Mat Min Exi Min Mat Gar Fac Hostile Shots Fired 492 | . 71 14 49 27 . 21 10 10 290 Missed 150 | . 20 1 11 4 . 7 6 5 96 Hits 342 | . 51 13 38 23 . 14 4 5 194 Melee 1 | . . . 1 . . . . . . Projectile 341 | . 51 13 37 23 . 14 4 5 194 AOE 14 | . . 14 . . . . . . . Critical Strikes 7 | . 1 . 2 1 . . . . 3 Damage Taken 5041 | . 607 527 457 328 . 138 38 76 2870 Core 751 | . 121 95 86 . . 7 . . 442 Absorbed by Shields . | . . . . . . . . . . Ignored by Resistances 72 | . . . 52 20 . . . . . Regen/Repaired (Parts) 44 | . . . 44 . . . . . . Core Remaining (%) 66 | 100 . 13 . . . 53 . 100 . Volleys Fired 274 | . 66 5 44 14 . 7 14 9 115 Largest 3 | . 2 2 2 2 . 2 3 2 3 Hottest 173 | . 90 90 71 66 . 112 173 133 173 Shots Fired 556 | . 131 7 81 29 . 14 37 13 244 Gun 143 | . 74 7 42 . . 14 6 . . Cannon 399 | . 57 . 39 29 . . 31 13 230 Launcher 7 | . . . . . . . . . 7 Special 7 | . . . . . . . . . 7 Kinetic 333 | . 57 . 81 29 . . 14 . 152 Thermal 160 | . 32 . . . . 14 23 13 78 Explosive 7 | . . . . . . . . . 7 Electromagnetic 49 | . 42 7 . . . . . . . Robot Hit Streak 19 | . 6 7 13 19 . 5 6 3 9 Robot Miss Streak 5 | . 5 2 5 1 . 1 3 2 4 Penetration Max 1 | . . . 1 . . . . . 1 Secondary Targets 1 | . . . 1 . . . . . . Max Gunslinging Chain 1 | . . . 1 . . . . . . Shots Hit Robots 338 | . 81 6 65 21 4 10 16 6 129 Core Hits 157 | . 33 3 24 6 . 4 7 1 79 Critical Kills . | . . . . . . . . . . Critical Parts Destroyed 5 | . . . 5 . . . . . . Critical Strikes 27 | . 1 . 6 2 . 1 1 . 16 Burn 2 | . . . . . . 1 1 . . Destroy 5 | . . . 5 . . . . . . Blast 20 | . 1 . 1 2 . . . . 16 Melee Attacks 6 | . . . . . 4 . . 2 . Impact . | . . . . . . . . . . Slashing . | . . . . . . . . . . Piercing . | . . . . . . . . . . Sneak Attacks 6 | . . . . . 4 . . 2 . Combat Hostiles . | . . . . . . . . . . Follow-up Attacks . | . . . . . . . . . . Damage Inflicted 8417 | . 1274 90 1235 454 . 191 394 132 4647 Guns 1469 | . 568 85 593 . . 171 52 . . Cannons 5735 | . 650 . 622 442 . . 342 116 3563 Explosions 1115 | . 40 . . . . . . . 1075 Melee . | . . . . . . . . . . Ramming 98 | . 16 5 20 12 . 20 . 16 9 Kinetic 5131 | . 650 . 1215 442 . . 168 . 2656 Thermal 1655 | . 235 . . . . 171 226 116 907 Explosive 1052 | . . . . . . . . . 1052 Electromagnetic 481 | . 373 85 . . . . . . 23 Impact . | . . . . . . . . . . Slashing . | . . . . . . . . . . Piercing . | . . . . . . . . . . Highest Corruption 17 | . . . . 8 9 17 . . 5 Average Corruption 9 | . . . . 8 8 12 . . 3 Corruption Purged . | . . . . . . . . . . Corruption Blocked . | . . . . . . . . . . Effects 45 | . . . . 11 14 18 . . 2 Message Errors 13 | . . . . 2 5 6 . . . Matter Fused 16 | . . . . 4 6 5 . . 1 Heat Flow Errors 5 | . . . . 2 1 2 . . . Energy Discharges 3 | . . . . 1 1 1 . . . Data Loss (minor) 6 | . . . . . 1 4 . . 1 Data Loss (major) 1 | . . . . 1 . . . . . Misfires 1 | . . . . 1 . . . . . Overload Shots . | . . . . . . . . . . Overflow Damage 65 | . 11 . 4 . . . 9 . 41 Projectiles 54 | . 9 . 4 . . . 9 . 32 Explosions 11 | . 2 . . . . . . . 9 Melee . | . . . . . . . . . . Knockbacks 33 | . 10 . . . . 1 . . 22 Impact 1 | . . . . . . 1 . . . Kinetic 28 | . 7 . . . . . . . 21 Secondary 4 | . 3 . . . . . . . 1 Self-Inflicted Damage 36 | . 36 . . . . . . . . Shots 1 | . 1 . . . . . . . . Rammed 17 | . 6 3 2 2 . . . 1 3 Targets Rammed 21 | . 7 3 3 2 . 1 . 2 3 Kicked . | . . . . . . . . . . Crushed 4 | . 1 . 1 . . 1 . 1 . Highest Temperature 233 | . 5 . 16 196 233 227 189 60 153 Average Temperature 42 | . 2 . 9 92 122 58 58 32 34 Received Heat Transfer 1125 | . 234 . 234 114 . 12 9 . 522 Siege Activations . | . . . . . . . . . . Martial Activations . | . . . . . . . . . . Shielding Activations . | . . . . . . . . . . Robots Disrupted . | . . . . . . . . . . Combat Hostiles . | . . . . . . . . . . Robots Corrupted . | . . . . . . . . . . Combat Hostiles . | . . . . . . . . . . Parts Fried . | . . . . . . . . . . Impact Corruptions . | . . . . . . . . . . Robots Melted . | . . . . . . . . . . Combat Hostiles . | . . . . . . . . . . Parts Melted 2 | . . . . . . 1 1 . . Heat Transferred 2765 | . 500 . . . . 444 444 148 1229 Parts Sabotaged . | . . . . . . . . . . Parts Stolen . | . . . . . . . . . . Parts Stripped . | . . . . . . . . . . Power Chain Reactions 1 | . 1 . . . . . . . . Alert | -11 -10 -10 -9 -9 -9 -8 -8 -8 -7 ------- Run | Yrd Mat Min Mat Min Exi Min Mat Gar Fac Maximum Alert Level 2 | . . . . . . . . 1 2 Low Security (%) 89 | 100 100 100 100 100 . 100 100 79 62 Level 1 6 | . . . . . . . . 20 20 Level 2 4 | . . . . . . . . . 17 Level 3 . | . . . . . . . . . . Level 4 . | . . . . . . . . . . Level 5 . | . . . . . . . . . . High Security . | . . . . . . . . . . Max Security . | . . . . . . . . . . Peak Influence 648 | . 149 4 98 52 . 95 86 345 648 Initial 180 | . . 4 . 17 . . 2 2 180 Average 84 | . 59 . 17 6 . 21 43 174 202 Influence Increases 2823 | . 534 . 287 112 . 110 182 343 1255 Destroy 0b10 Robot/C 1500 | . 340 . 160 100 . 80 100 20 700 Destroy 0b10 Robot/NC 140 | . 35 . 35 . . 5 10 . 55 Destroy Leader 278 | . 76 . 58 10 . 10 24 . 100 Allied During Kill 17 | . . . . . . . . 1 16 Successful Hack 81 | . 17 . 29 . . . 9 12 14 Select Force Hacks 30 | . 30 . . . . . . . . Disable Machine 90 | . 15 . . . . . 15 . 60 Anti-Garrison Action 300 | . . . . . . . . 300 . Destroy Structure 87 | . 6 . 5 2 . . 9 10 55 Lose Combat Pursuer 300 | . 15 . . . . 15 15 . 255 Influence Decreases 2224 | . 522 12 241 158 . 103 185 2 1001 Entered New Map 209 | . . 8 . 29 . . 5 2 165 Time Decay 1625 | . 492 4 151 109 . 103 180 . 586 Lost Part 290 | . 30 . 10 20 . . . . 230 Lost Ally 20 | . . . . . . . . . 20 Purge Threat 80 | . . . 80 . . . . . . Squads Dispatched 14 | . 3 . 1 2 . . . . 8 Investigation 4 | . 1 . 1 2 . . . . . Extermination 3 | . . . . . . . . . 3 Reinforcement 5 | . 2 . . . . . . . 3 Assault 1 | . . . . . . . . . 1 Garrison 1 | . . . . . . . . . 1 Intercept . | . . . . . . . . . . Searches Triggered . | . . . . . . . . . . Construction Impeded . | . . . . . . . . . . Haulers Reinforced 2 | . . . . . . . . . 2 Active Scanning Responses . | . . . . . . . . . . Cargo Convoy Interrupts 1 | . . . . . . . . . 1 Stealth | -11 -10 -10 -9 -9 -9 -8 -8 -8 -7 --------- Run | Yrd Mat Min Mat Min Exi Min Mat Gar Fac Distress Signals 7 | . . . . . . . 2 . 5 Communications Jammed . | . . . . . . . . . . Distress Signals . | . . . . . . . . . . Times Spotted 140 | . 25 1 17 5 . 9 12 1 70 Peak Tracking Total 10 | . 4 1 4 3 . 4 6 1 10 Tactical Retreats 14 | . 1 . . . . 1 1 . 11 Traps | -11 -10 -10 -9 -9 -9 -8 -8 -8 -7 ------- Run | Yrd Mat Min Mat Min Exi Min Mat Gar Fac Traps Triggered 2 | . 1 1 . . . . . . . Indirectly . | . . . . . . . . . . Trap Hack Attempts . | . . . . . . . . . . Triggered . | . . . . . . . . . . Disarmed . | . . . . . . . . . . Reprogrammed 6 | . . . 6 . . . . . . Reused . | . . . . . . . . . . Traps Extracted . | . . . . . . . . . . Installed . | . . . . . . . . . . Triggered . | . . . . . . . . . . Machines | -11 -10 -10 -9 -9 -9 -8 -8 -8 -7 ---------- Run | Yrd Mat Min Mat Min Exi Min Mat Gar Fac Machines Disabled 7 | . 1 . . . . . 1 1 4 Max in Single Turn 2 | . 1 . . . . . 1 1 2 Garrison Access 1 | . . . . . . . . . 1 Garrison Relay 1 | . . . . . . . . 1 . Machines Repaired . | . . . . . . . . . . Machines Dismantled . | . . . . . . . . . . Machines Sabotaged . | . . . . . . . . . . Overloaded Fab Kills . | . . . . . . . . . . Hacking | -11 -10 -10 -9 -9 -9 -8 -8 -8 -7 --------- Run | Yrd Mat Min Mat Min Exi Min Mat Gar Fac Machines Accessed 30 | . 7 1 8 1 2 . 2 4 5 Terminals 17 | . 5 . 4 . . . 1 4 3 Fabricators . | . . . . . . . . . . Repair Stations 1 | . . . 1 . . . . . . Recycling Units 4 | . 2 . 1 . . . . . 1 Scanalyzers 2 | . . . 2 . . . . . . Garrison Access 2 | . . . . . . . 1 . 1 Total Hacks 79 | . 18 1 30 1 5 . 7 7 10 Successful 45 | . 9 1 18 1 5 . 5 3 3 Failed 34 | . 9 . 12 . . . 2 4 7 Catastrophic 3 | . 1 . 1 . . . . . 1 Database Lockouts . | . . . . . . . . . . Manual 19 | . 4 . 5 . 1 . 4 . 5 Terminals 46 | . 14 . 12 . . . 6 7 7 Fabricators . | . . . . . . . . . . Repair Stations 3 | . . . 3 . . . . . . Recycling Units 9 | . 4 . 3 . . . . . 2 Scanalyzers 12 | . . . 12 . . . . . . Garrison Access 2 | . . . . . . . 1 . 1 Terminal Hacks 22 | . 5 1 4 1 5 . 3 3 . Record 4 | . . . . . 4 . . . . Prototype ID Bank 2 | . . . . . . . 2 . . Open Door 2 | . . 1 . 1 . . . . . Emergency Access Points 1 | . . . . . . . . 1 . Alert Level 1 | . . . 1 . . . . . . Unreport Threat 1 | . . . 1 . . . . . . Locate Traps 5 | . 3 . 1 . . . 1 . . Reprogram Traps 1 | . . . 1 . . . . . . Registered Components 1 | . 1 . . . . . . . . Zone Layout 1 | . 1 . . . . . . . . Garrison Registry 1 | . . . . . . . . 1 . Patrol Navigation 1 | . . . . . . . . 1 . Proto ID Catalog 1 | . . . . . 1 . . . . Fabricator Hacks . | . . . . . . . . . . Repair Station Hacks 2 | . . . 2 . . . . . . Scan Component 1 | . . . 1 . . . . . . Repair 1 | . . . 1 . . . . . . Recycling Unit Hacks 3 | . 2 . 1 . . . . . . Retrieve Components 3 | . 2 . 1 . . . . . . Scanalyzer 9 | . . . 9 . . . . . . Insert Component 2 | . . . 2 . . . . . . Analyze 2 | . . . 2 . . . . . . Retrieve Study 5 | . . . 5 . . . . . . Garrison Access Hacks 2 | . . . . . . . 1 . 1 Unlock Access 1 | . . . . . . . 1 . . Seal Access 1 | . . . . . . . . . 1 Unauthorized Hacks 7 | . 2 . 2 . . . 1 . 2 Terminals 5 | . 1 . 1 . . . 1 . 2 Botnet 4 | . 1 . 1 . . . 1 . 1 Operators 1 | . . . . . . . . . 1 Fabricators . | . . . . . . . . . . Repair Stations . | . . . . . . . . . . Recycling Units 2 | . 1 . 1 . . . . . . Recyclers 1 | . . . 1 . . . . . . Tunnel 1 | . 1 . . . . . . . . Scanalyzers . | . . . . . . . . . . Garrison Access . | . . . . . . . . . . Data Cores Recovered . | . . . . . . . . . . Used . | . . . . . . . . . . Hacking Detections 21 | . 7 . 6 . . . 2 2 4 Full Trace Events 2 | . . . 1 . . . . 1 . Feedback Events . | . . . . . . . . . . Feedback Blocked . | . . . . . . . . . . Robot Schematics Acquired . | . . . . . . . . . . Robots Built . | . . . . . . . . . . Authchips . | . . . . . . . . . . Time . | . . . . . . . . . . Total Robot Build Rating . | . . . . . . . . . . Part Schematics Acquired 2 | . . . 2 . . . . . . Parts Built . | . . . . . . . . . . Authchips . | . . . . . . . . . . Time . | . . . . . . . . . . Total Part Build Rating . | . . . . . . . . . . Part Studies Acquired 5 | . . . 5 . . . . . . Parts Repaired 1 | . . . 1 . . . . . . Time 70 | . . . 70 . . . . . . Parts Recycled . | . . . . . . . . . . Recycled Matter . | . . . . . . . . . . Retrieved Matter . | . . . . . . . . . . Retrieved Components 10 | . 10 . . . . . . . . Parts Scanalyzed 2 | . . . 2 . . . . . . Part Schematics Acquired 2 | . . . 2 . . . . . . Parts Damaged . | . . . . . . . . . . Bothacking | -11 -10 -10 -9 -9 -9 -8 -8 -8 -7 ------------ Run | Yrd Mat Min Mat Min Exi Min Mat Gar Fac Used RIF Installer 1 | . . . . . . . . 1 . Robots Hacked 8 | . . . . . 4 . . . 4 Non-combat 5 | . . . . . 3 . . . 2 Combat 3 | . . . . . 1 . . . 2 Robot Hacks Applied 9 | . . . . . 4 . . . 5 parse_system 6 | . . . . . 4 . . . 2 drop_inventory 1 | . . . . . . . . . 1 map_route 1 | . . . . . . . . . 1 amplify_resonance 1 | . . . . . . . . . 1 Relay Couplers Released 7 | . . . . . . . . 7 . Machine Destruction 3 | . . . . . . . . 3 . Programmers 4 | . . . . . . . . 4 . Attached 3 | . . . . . . . . . 3 Fabnet Peak Effective % . | . . . . . . . . . . Robots Rewired 2 | . . . . . . . . 2 . Allies Hacked . | . . . . . . . . . . Hacks Repelled . | . . . . . . . . . . Allies | -11 -10 -10 -9 -9 -9 -8 -8 -8 -7 -------- Run | Yrd Mat Min Mat Min Exi Min Mat Gar Fac Total Allies 5 | . . 3 . . . . . 2 . Largest Group 3 | . . 3 . . . . . 2 2 Highest-Rated Group 40 | . . 40 . . . . . 37 37 Highest-Rated Ally 21 | . . 16 . . . . . 21 21 Total Orders 1 | . . 1 . . . . . . . STAY 1 | . . 1 . . . . . . . Ally Attacks 36 | . . . . . . . . 4 32 Total Damage 485 | . . . . . . . . 52 433 Kills 6 | . . . . . . . . 1 5 Allies Corrupted . | . . . . . . . . . . Allies Melted . | . . . . . . . . . . X0-1V1 Amusement Gains 198 | . 10 80 . 10 . . 5 . 93 Good Acts 20 | . . 3 4 3 . . 1 3 6 Bad Acts 21 | . . 2 1 5 . 3 1 . 9 Intel | -11 -10 -10 -9 -9 -9 -8 -8 -8 -7 ------- Run | Yrd Mat Min Mat Min Exi Min Mat Gar Fac Active Infowar (turns) . | . . . . . . . . . . Robot Analysis Total . | . . . . . . . . . . Derelict Logs Recovered 2 | . . 1 . 1 . . . . . Drone Launches . | . . . . . . . . . . Drone Recoveries . | . . . . . . . . . . Exploration | -11 -10 -10 -9 -9 -9 -8 -8 -8 -7 ------------- Run | Yrd Mat Min Mat Min Exi Min Mat Gar Fac Turns Passed 8204 | 56 1614 913 813 792 448 514 403 812 1839 Spaces Moved 4293 | 39 861 372 395 472 282 278 204 473 917 Core 10 | 10 . . . . . . . . . Treads 3908 | . 662 372 395 472 282 278 204 473 770 Legs 228 | 29 199 . . . . . . . . Wheels 147 | . . . . . . . . . 147 Hover . | . . . . . . . . . . Flight . | . . . . . . . . . . Fastest Speed 50 | 50 120 160 157 152 152 160 160 160 110 Average Speed 161 | 104 150 228 157 153 156 160 160 160 154 Slowest Speed 250 | 120 160 250 237 157 160 160 160 160 212 Overloaded Moves . | . . . . . . . . . . Propulsion Burnouts . | . . . . . . . . . . Robots Hopped . | . . . . . . . . . . Potential Cave-ins . | . . . . . . . . . . Cave-ins Triggered . | . . . . . . . . . . Exploration Rate (%) 55 | 4 92 79 42 81 65 70 23 79 17 Regions Visited 9 Branch Regions 4 Pre-discovered Areas 4 | . 1 1 . 1 1 . . . . Known Exits Taken 2 | . . . . . . 1 1 . . Unknown Exits Taken 6 | 1 1 1 1 1 1 . . . . Scrap Searched 5 | . . 1 . 2 . 2 . . . Spaces Dug 2 | . . . . . . . . . 2 Terrain Destroyed 74 | . 3 . 6 3 . . 9 . 53 Melee . | . . . . . . . . . . Projectile 56 | . . . 6 3 . . 9 . 38 AOE 18 | . 3 . . . . . . . 15 Terrain Rammed . | . . . . . . . . . . Walls Destroyed . | . . . . . . . . . . Machines Disabled . | . . . . . . . . . . Actions | -11 -10 -10 -9 -9 -9 -8 -8 -8 -7 --------- Run | Yrd Mat Min Mat Min Exi Min Mat Gar Fac Total 5075 | 52 1046 428 503 513 290 333 250 518 1142 Wait 264 | . 65 29 27 11 . 43 13 1 75 Move 4284 | 38 860 371 394 471 281 277 203 472 917 Hop . | . . . . . . . . . . Pick Up 86 | 8 22 6 12 6 2 2 5 16 7 Fast Attach 14 | 4 1 1 2 2 . . 2 . 2 Attach 34 | 2 6 2 4 1 1 2 2 1 13 Detach . | . . . . . . . . . . Swap 34 | . 6 4 8 . 1 . 6 3 6 Drop 55 | . 13 7 9 6 1 1 5 9 4 Fire 274 | . 66 5 44 14 . 7 14 9 115 Melee 6 | . . . . . 4 . . 2 . Ram . | . . . . . . . . . . Kick . | . . . . . . . . . . Crush 21 | . 7 3 3 2 . 1 . 2 3 Escape Stasis . | . . . . . . . . . . Rewire 3 | . . . . . . . . 3 . Trap . | . . . . . . . . . . Miscellaneous . | . . . . . . . . . . Route ------- -11/Scrapyard -10/Materials (discovered 6 exits: *Mat x3 / *Min x2 / [*Sub]) -10/Mines (discovered 2 exits: *Mat / [*Sub]) -9/Materials (discovered 2 exits: Mat / *Min) -9/Mines (discovered 3 exits: *Mat x2 / *Exi) -9/Exiles -8/Mines -8/Materials (discovered 3 exits: *Fac x2 / Gar) -8/Garrison (discovered 3 exits: *Fac x3) -7/Factory (discovered 2 exits: *Fac x2) History --------- Turn | Location | Event 20 | -11/Scrapyard | Discovered new exit (range 14) 57 | -11/Scrapyard | Entered Materials 303 | -10/Materials | Build established: Mutant 532 | -10/Materials | Discovered new exit (range 6) 671 | -10/Materials | Discovered new exit (range 10) 694 | -10/Materials | Discovered new exit (range 16) 959 | -10/Materials | Discovered new exit (range 6) 1222 | -10/Materials | Discovered new exit (range 16) 1351 | -10/Materials | Discovered new exit (range 6) 1632 | -10/Materials | Prayed at D.C.S.S. Altar Unit 1671 | -10/Materials | Entered Mines 1719 | -10/Mines | Discovered new exit (range 5) 1752 | -10/Mines | Discovered new exit (range 12) 1800 | -10/Mines | X0-1V1 mutated your Propulsion slot to Utility slot 1934 | -10/Mines | Assisted by bots powering up and referring to "LRC-V3" 2058 | -10/Mines | Found a Scrap Suit stashed away for nefarious purposes 2226 | -10/Mines | X0-1V1 activates XOMVISION 2260 | -10/Mines | A weapon hastily lodged in a ceiling crevice suddenly fell to the ground 2306 | -10/Mines | Met a Derelict who couldn't figure out how to use a Trap Extractor 2311 | -10/Mines | Learned location of Zion (-6) 2540 | -10/Mines | YI-UF0 nonchalantly dropped a Grenade Launcher on the ground 2545 | -10/Mines | Core integrity fell below 50% 2557 | -10/Mines | Core integrity fell below 20% 2584 | -10/Mines | Entered Materials 2584 | -9/Materials | Evolved 2 slots: Propulsion x1, Utility x1 2629 | -9/Materials | Energy generation permanently improved by X0-1V1 (+20; -200 max core) 2836 | -9/Materials | Discovered new exit (range 18) 2882 | -9/Materials | X0-1V1 sent you into danger 2894 | -9/Materials | Repaired Corrupted Beamcaster? 3098 | -9/Materials | Identified exit to Materials 3098 | -9/Materials | X0-1V1 revealed exit location to -8/Materials 3397 | -9/Materials | Entered Mines 3431 | -9/Mines | Met a Derelict shopkeep closing up shop 3441 | -9/Mines | Learned Materials garrison access intel 3509 | -9/Mines | Learned location of Storage (-7) 3548 | -9/Mines | Discovered exit to Materials (range 13) 3586 | -9/Mines | Received a Rocket Launcher from a helpful Derelict 3664 | -9/Mines | Discovered exit to Materials (range 3) 3664 | -9/Mines | X0-1V1 activates XOMVISION 4122 | -9/Mines | X0-1V1 sent someone to clean up after you 4182 | -9/Mines | Deemed a non-threat by the Exiles lab entrance 4182 | -9/Mines | Discovered new exit (range 5) 4189 | -9/Mines | Entered Exiles 4226 | -9/Exiles | Met 8R-AWN 4255 | -9/Exiles | Met EX-HEX 4325 | -9/Exiles | Met EX-BIN 4345 | -9/Exiles | Aligned with FarCom system 4347 | -9/Exiles | Given EX-Vault access code 4387 | -9/Exiles | Opened EX-Vault 4397 | -9/Exiles | Found Potential Leg 4402 | -9/Exiles | Found Potential Leg 4438 | -9/Exiles | Warned to stay clear of 0b10 Research branches 4481 | -9/Exiles | Met EX-DEC 4616 | -9/Exiles | Discovered new exit (range 14) 4637 | -9/Exiles | Left Exiles lab with Potential Leg 4637 | -9/Exiles | Entered Mines 4911 | -8/Mines | System corruption reached 10% 5085 | -8/Mines | Discovered exit to Materials (range 10) 5135 | -8/Mines | X0-1V1 sent hostile G-34 Mercenary (x4) 5151 | -8/Mines | Entered Materials 5151 | -8/Materials | Evolved 2 slots: Propulsion x1, Weapon x1 5152 | -8/Materials | Loaded intel: 1 garrison access location 5434 | -8/Materials | Identified exit to Factory 5434 | -8/Materials | X0-1V1 revealed exit location to -7/Factory 5490 | -8/Materials | Identified exit to Garrison 5520 | -8/Materials | Discovered exit to Factory (range 7) 5554 | -8/Materials | Entered Garrison 5554 | -8/Garrison | Discovered recently destroyed garrison 5557 | -8/Garrison | Build established: Skirmisher 5646 | -8/Garrison | X0-1V1 activates XOMVISION 5933 | -8/Garrison | Discovered exit to Factory (range 10) 5950 | -8/Garrison | Build established: Mutant 5959 | -8/Garrison | Installed Relay Interface Framework 6031 | -8/Garrison | Garrison Relay disabled 6141 | -8/Garrison | Propulsion slot count permanently improved by X0-1V1 (+1) 6264 | -8/Garrison | Build established: Bothacker-Mutant 6291 | -8/Garrison | Discovered exit to Factory (range 12) 6303 | -8/Garrison | Discovered exit to Factory (range 56) 6303 | -8/Garrison | Discovered exit to Factory (range 12) 6303 | -8/Garrison | Discovered exit to Factory (range 41) 6366 | -8/Garrison | Entered Factory 6366 | -7/Factory | Accompanied by 2 allies 6366 | -7/Factory | Evolved 2 slots: Utility x2 6435 | -7/Factory | Discovered new exit (range 15) 6637 | -7/Factory | X0-1V1 announced a LAN party 6685 | -7/Factory | Build established: Bothacker-Skirmisher 7082 | -7/Factory | X0-1V1 redirected Transport squads to designated parking area 7184 | -7/Factory | X0-1V1 rewrote Commando 3a IFF filter 7494 | -7/Factory | Matter capacity permanently improved by X0-1V1 (+200; -100 max core) 7512 | -7/Factory | Identified exit to Factory 7512 | -7/Factory | X0-1V1 revealed exit location to -6/Factory 7768 | -7/Factory | Cargo convoy interrupted 7851 | -7/Factory | Lost 7 parts (3n3u1w) 7931 | -7/Factory | Lost 3 parts (1p1n1w) 7964 | -7/Factory | X0-1V1 enhanced Transport squad support 7966 | -7/Factory | First assault squad dispatched 8072 | -7/Factory | Garrison activated, responded to threat 8102 | -7/Factory | Core integrity fell below 50% 8130 | -7/Factory | Core integrity fell below 20% 8164 | -7/Factory | Destroyed 11 combat bots 8205 | -7/Factory | Destroyed by P-60 Hacker with Shock Rifle Last Messages --------------- 08142_ Penetrated by Slug. 08143_ H-55 Commando destroyed. 08143_ U-05 Engineer lays Concrete. X0-1V1's Piety Tracker suddenly appears amidst shimmering waves of color. 08146_ U-05 Engineer lays Concrete. 08149_ Hvy. Ion Cannon destroyed. 08151_ U-05 Engineer lays Concrete. 08161_ C-45 Heavy ARC bursts open, deploying its payload. 08161_ G-50 Soldier unfolds itself. 08161_ B-48 Gladiator unfolds itself. 08161_ G-47 Trooper unfolds itself. 08161_ I-36 Angel unfolds itself. 08161_ Hvy. Ion Engine destroyed. 08162_ System corrupted: Matter fused (-7). 08162_ X0-1V1: "I find this area lacking in decorations." G-47 Trooper shuts down. 08163_ Hvy. Ion Cannon destroyed. 08163_ X0-1V1 is amused. 08187_ Imp. Heat Sink destroyed. 08205_ X0-1V1 chortles! Map ----- +----------------------------------------------------+ | # # "" "" #???????????# """" #??? | | # # #???????????# #??? | | + # #??#???#???## ###? | | # #+##+#########################+####### | | " # # =% % ^ *[%% | | " #### # [ *! | | " # ## # % * % | | #### # ! | | =#??####### |= [ | | ##!#????????### ################ ####+###### | | ?#%#??????????# #??????????????# # =[*=%[* " | | ##+########???# #?############## # ==||! # | | = #???# #?# =# # /!|= # | | #???# #?# %+ #! | # | | #####+#+### !# b########### | | #[[ ## #i # ?? | | """ """" #[[ ## # #??""""""?? | | """ """" # ## # #? ??? | | """ """" # " ## # #?"""""""?? | | """ """" + """ ## # g # ?? | | """ """" # G ## # # """"""""" | | """ """" # """ ## + + | | """ "?"" # [ " ## % # g # """"""""" | | # ## % # # ?? | | +#############+################### #?"""""""?? | | kk k @ p #? ??? | | % #?? ?? | | %% #??######?? | | #?????????? | | #?????????? | | +####################+######+###########?????????? | | #?#??? ?# ????????????????????? | | #????? ?# ????????????????????? | | ]! #????? ?# ?????????????????????? | | !! #?????????????# ?????????????????????? | | #????????????????????????????????????? | | ] #????????????????????????????????????? | | #############????????????????????????????????????? | | ?????????????????????????????????????????????????? | | ?????????????????????????????????????????????????? | | ?????????????????????????????????????????????????? | | ?????????????????????????????????????????????????? | | ?????????????????????????????????????????????????? | | ?????????????????????????????????????????????????? | | ?????????????????????????????????????????????????? | | ?????????????????????????????????????????????????? | | ?????????????????????????????????????????????????? | | ?????????????????????????????????????????????????? | | ?????????????????????????????????????????????????? | | ?????????????????????????????????????????????????? | +----------------------------------------------------+ Best States ------------- Heat Dissipation 120 Energy Generation 36 Energy Capacity 290 Matter Stores 682 Matter Capacity 900 Sight Range 18 Terrain Scan Density 10 Armor Coverage 225 Resistance: TH 10 Weapon Cycling 15 Evasion (%) 55 Recoil Reduction 4 Offensive Hacking 10 Relay Coupler Types 2 Relay Coupler Value 56 Item Schematics ----------------- Huge Storage Unit | -9/Materials | Scanalyzed Arm. Wheel | -9/Materials | Scanalyzed Robot Schematics ------------------ None Fabricated ------------ Nothing Repaired ---------- Beamcaster | 51% | -9/Materials | Corrupted Studied --------- Shotgun | -9/Materials | Hacked Grenade Launcher | -9/Materials | Hacked Arm. Wheel | -9/Materials | Hacked Imp. Light Cannon | -9/Materials | Hacked Imp. Treads | -9/Materials | Hacked Alien Tech Used ----------------- None Achievements -------------- None Challenges ------------ None Game ------ Seed PotentialTechClaymores Manual? 0 Play Time 01:00:36 Cumulative 499.4 hours Start 2026.07.21 @ 19:54:10 End 2026.07.21 @ 20:52:45 Sessions 1 Manual Loads 0 Difficulty Rogue Special Mode None Game No. 252 Rogue 252 Adventurer 0 Explorer 0 Win Type - Total 15 Types 10/0/2/0/0/0/0/1/0/2 Lore% 86 Gallery% 81 Achievement% 69 Wizard Run 0 Options --------- Layout 0 ASCII 0 Keyboard 0 Movement Mouse Keybinds 0 Fullscreen 1 Font 18/SmallcapsGlow Map View 76x50 Zoom Use 0% Tactical HUD 1 Map Filters NONE Filters NONE Steam 1 RUN: 1752187c-9e88-4cfe-be4c-37afff1ef205